[Event "Titled Tuesday Blitz February 28 Early 2023"]
[White "Womacka, Mathias"]
[Black "Postma, Dinant"]
[WhiteFideId "4611390"]
[BlackFideId "1018612"]
[WhiteElo "2377"]
[BlackElo "2583"]
[Result "0-1"]
[Round "10"]
[TimeControl "180+2"]
[Date "2023.02.28"]
[WhiteClock "0:01:26"]
[BlackClock "0:01:17"]

1. e4 {[%clk 0:03:00]}  c5 {[%clk 0:02:59]} 2. Nf3 {[%clk 0:03:00]}  g6 {[%clk 0:02:59]} 3. d4 {[%clk 0:02:59]}  cxd4 {[%clk 0:03:00]} 4. Nxd4 {[%clk 0:02:59]}  Bg7 {[%clk 0:03:00]} 5. c4 {[%clk 0:02:59]}  Nc6 {[%clk 0:03:00]} 6. Be3 {[%clk 0:02:59]}  Nf6 {[%clk 0:03:01]} 7. Nc3 {[%clk 0:02:59]}  Ng4 {[%clk 0:03:01]} 8. Qxg4 {[%clk 0:02:57]}  Nxd4 {[%clk 0:03:02]} 9. Qd1 {[%clk 0:02:57]}  e5 {[%clk 0:03:02]} 10. Bd3 {[%clk 0:02:56]}  O-O {[%clk 0:03:02]} 11. O-O {[%clk 0:02:56]}  b6 {[%clk 0:03:02]} 12. Qd2 {[%clk 0:02:50]}  Bb7 {[%clk 0:03:02]} 13. Rfd1 {[%clk 0:02:50]}  Re8 {[%clk 0:02:54]} 14. f3 {[%clk 0:02:47]}  Bc6 {[%clk 0:02:42]} 15. Ne2 {[%clk 0:02:40]}  Ne6 {[%clk 0:02:41]} 16. b4 {[%clk 0:02:31]}  Bf8 {[%clk 0:02:38]} 17. a3 {[%clk 0:02:22]}  a5 {[%clk 0:02:34]} 18. Qe1 {[%clk 0:02:14]}  axb4 {[%clk 0:02:16]} 19. axb4 {[%clk 0:02:15]}  Qe7 {[%clk 0:02:17]} 20. b5 {[%clk 0:02:09]}  Bb7 {[%clk 0:02:16]} 21. Bxb6 {[%clk 0:02:08]}  Nc5 {[%clk 0:02:15]} 22. Bc2 {[%clk 0:01:58]}  Qe6 {[%clk 0:02:05]} 23. Ba5 {[%clk 0:01:56]}  Qxc4 {[%clk 0:02:02]} 24. Nc3 {[%clk 0:01:39]}  Ne6 {[%clk 0:01:39]} 25. Bd3 {[%clk 0:01:34]}  Bc5+ {[%clk 0:01:32]} 26. Kh1 {[%clk 0:01:33]}  Qd4 {[%clk 0:01:25]} 27. Bf1 {[%clk 0:01:26]}  Qg1# {[%clk 0:01:17]} 0-1


[Site "https://www.chess.com"]

[Event "Titled Tuesday Blitz February 28 Early 2023"]
[White "Pinheiro, Iung Alicio de O."]
[Black "Abdilkhair, Abilmansur"]
[WhiteFideId "2104350"]
[BlackFideId "13716417"]
[WhiteElo "2283"]
[BlackElo "2216"]
[Result "0-1"]
[Round "10"]
[TimeControl "180+2"]
[Date "2023.02.28"]
[WhiteClock "0:00:30"]
[BlackClock "0:01:37"]

1. e4 {[%clk 0:03:00]}  e5 {[%clk 0:03:00]} 2. Bc4 {[%clk 0:02:59]}  Nc6 {[%clk 0:03:00]} 3. f4 {[%clk 0:02:51]}  Nf6 {[%clk 0:02:50]} 4. Nc3 {[%clk 0:02:29]}  Bb4 {[%clk 0:02:48]} 5. Nf3 {[%clk 0:02:23]}  d6 {[%clk 0:02:40]} 6. O-O {[%clk 0:02:18]}  O-O {[%clk 0:02:39]} 7. d3 {[%clk 0:02:14]}  Bxc3 {[%clk 0:02:30]} 8. bxc3 {[%clk 0:02:12]}  Bg4 {[%clk 0:02:30]} 9. h3 {[%clk 0:02:09]}  Be6 {[%clk 0:02:23]} 10. Bxe6 {[%clk 0:01:51]}  fxe6 {[%clk 0:02:24]} 11. fxe5 {[%clk 0:01:50]}  dxe5 {[%clk 0:02:20]} 12. Rb1 {[%clk 0:01:45]}  b6 {[%clk 0:02:18]} 13. Qe1 {[%clk 0:01:39]}  Qd6 {[%clk 0:02:18]} 14. Be3 {[%clk 0:01:38]}  Nh5 {[%clk 0:02:16]} 15. g3 {[%clk 0:01:07]}  Rf7 {[%clk 0:02:07]} 16. Kg2 {[%clk 0:01:07]}  Raf8 {[%clk 0:02:06]} 17. Qd2 {[%clk 0:01:06]}  Ne7 {[%clk 0:01:56]} 18. d4 {[%clk 0:00:48]}  exd4 {[%clk 0:01:52]} 19. e5 {[%clk 0:00:30]}  Qc6 {[%clk 0:01:37]} 0-1


[Site "https://www.chess.com"]

[Event "Titled Tuesday Blitz February 28 Early 2023"]
[White "Cella, Glaucio Dalla Cortt"]
[Black "Koridze, Lile"]
[WhiteFideId "2119455"]
[BlackFideId "13612514"]
[WhiteElo "2011"]
[BlackElo "2047"]
[Result "0-1"]
[Round "10"]
[TimeControl "180+2"]
[Date "2023.02.28"]
[WhiteClock "0:00:02"]
[BlackClock "0:01:32"]

1. e4 {[%clk 0:02:49]}  c5 {[%clk 0:03:00]} 2. Nf3 {[%clk 0:02:49]}  d6 {[%clk 0:03:00]} 3. c3 {[%clk 0:02:50]}  Nf6 {[%clk 0:03:00]} 4. Be2 {[%clk 0:02:50]}  g6 {[%clk 0:03:00]} 5. O-O {[%clk 0:02:48]}  Bg7 {[%clk 0:03:01]} 6. Re1 {[%clk 0:02:49]}  O-O {[%clk 0:03:01]} 7. Bf1 {[%clk 0:02:50]}  a6 {[%clk 0:02:57]} 8. d4 {[%clk 0:02:50]}  b5 {[%clk 0:02:56]} 9. e5 {[%clk 0:02:47]}  dxe5 {[%clk 0:02:53]} 10. dxe5 {[%clk 0:02:48]}  Ng4 {[%clk 0:02:51]} 11. Qxd8 {[%clk 0:02:41]}  Rxd8 {[%clk 0:02:51]} 12. Bf4 {[%clk 0:02:42]}  Bb7 {[%clk 0:02:49]} 13. Be2 {[%clk 0:02:32]}  Nc6 {[%clk 0:02:46]} 14. e6 {[%clk 0:02:29]}  fxe6 {[%clk 0:02:45]} 15. Ng5 {[%clk 0:01:29]}  e5 {[%clk 0:02:44]} 16. Bg3 {[%clk 0:01:30]}  Nf6 {[%clk 0:02:34]} 17. Ne6 {[%clk 0:01:30]}  Rd5 {[%clk 0:02:31]} 18. Nxg7 {[%clk 0:01:30]}  Kxg7 {[%clk 0:02:31]} 19. c4 {[%clk 0:01:21]}  bxc4 {[%clk 0:02:22]} 20. Na3 {[%clk 0:01:22]}  Nd4 {[%clk 0:02:19]} 21. Bxc4 {[%clk 0:01:15]}  Rd7 {[%clk 0:02:18]} 22. Bxe5 {[%clk 0:01:15]}  Rad8 {[%clk 0:02:18]} 23. Rac1 {[%clk 0:00:50]}  Nf5 {[%clk 0:02:10]} 24. Be6 {[%clk 0:00:47]}  Rd2 {[%clk 0:02:09]} 25. Bc3 {[%clk 0:00:35]}  R2d6 {[%clk 0:02:00]} 26. Bxf5 {[%clk 0:00:35]}  gxf5 {[%clk 0:01:59]} 27. Rxe7+ {[%clk 0:00:32]}  Kg6 {[%clk 0:01:57]} 28. Bxf6 {[%clk 0:00:15]}  Kxf6 {[%clk 0:01:54]} 29. Ree1 {[%clk 0:00:14]}  Rg8 {[%clk 0:01:52]} 30. g3 {[%clk 0:00:11]}  f4 {[%clk 0:01:50]} 31. Nc4 {[%clk 0:00:09]}  Rd5 {[%clk 0:01:46]} 32. Rcd1 {[%clk 0:00:09]}  fxg3 {[%clk 0:01:43]} 33. hxg3 {[%clk 0:00:09]}  Rh5 {[%clk 0:01:43]} 34. f4 {[%clk 0:00:07]}  Rxg3+ {[%clk 0:01:42]} 35. Kf2 {[%clk 0:00:08]}  Rf3+ {[%clk 0:01:39]} 36. Kg1 {[%clk 0:00:03]}  Rg3+ {[%clk 0:01:37]} 37. Kf2 {[%clk 0:00:03]}  Rg2+ {[%clk 0:01:32]} 38. Ke3 {[%clk 0:00:02]}  Rh3# {[%clk 0:01:32]} 0-1


[Site "https://www.chess.com"]

[Event "Titled Tuesday Blitz February 28 Early 2023"]
[White "Ilkhomi, Jaloliddin"]
[Black "Jovic, Stanoje"]
[WhiteFideId "14700948"]
[BlackFideId "905020"]
[WhiteElo "2045"]
[BlackElo "2236"]
[Result "1/2-1/2"]
[Round "10"]
[TimeControl "180+2"]
[Date "2023.02.28"]
[WhiteClock "0:00:13"]
[BlackClock "0:00:08"]

1. Nf3 {[%clk 0:03:00]}  Nf6 {[%clk 0:02:59]} 2. c4 {[%clk 0:03:00]}  c5 {[%clk 0:02:59]} 3. g3 {[%clk 0:02:56]}  Nc6 {[%clk 0:02:57]} 4. Bg2 {[%clk 0:02:57]}  d5 {[%clk 0:02:56]} 5. cxd5 {[%clk 0:02:54]}  Nxd5 {[%clk 0:02:57]} 6. O-O {[%clk 0:02:55]}  e5 {[%clk 0:02:56]} 7. Nc3 {[%clk 0:02:54]}  Be6 {[%clk 0:02:54]} 8. d3 {[%clk 0:02:51]}  Be7 {[%clk 0:02:51]} 9. Nxd5 {[%clk 0:02:49]}  Bxd5 {[%clk 0:02:49]} 10. Be3 {[%clk 0:02:50]}  O-O {[%clk 0:02:46]} 11. Qc2 {[%clk 0:02:48]}  b6 {[%clk 0:02:42]} 12. Nd2 {[%clk 0:02:44]}  Bxg2 {[%clk 0:02:38]} 13. Kxg2 {[%clk 0:02:45]}  Qd5+ {[%clk 0:02:37]} 14. Nf3 {[%clk 0:02:43]}  Nd4 {[%clk 0:02:25]} 15. Bxd4 {[%clk 0:02:31]}  exd4 {[%clk 0:02:22]} 16. Qc4 {[%clk 0:02:31]}  Qb7 {[%clk 0:02:13]} 17. a4 {[%clk 0:02:28]}  a6 {[%clk 0:02:09]} 18. e3 {[%clk 0:02:18]}  b5 {[%clk 0:02:06]} 19. Qc2 {[%clk 0:02:18]}  dxe3 {[%clk 0:02:00]} 20. fxe3 {[%clk 0:02:19]}  Bf6 {[%clk 0:01:56]} 21. Rab1 {[%clk 0:02:03]}  Rac8 {[%clk 0:01:52]} 22. axb5 {[%clk 0:02:03]}  axb5 {[%clk 0:01:52]} 23. b3 {[%clk 0:02:00]}  Rfe8 {[%clk 0:01:52]} 24. e4 {[%clk 0:02:00]}  Qd7 {[%clk 0:01:42]} 25. Rbd1 {[%clk 0:01:52]}  Bd4 {[%clk 0:01:37]} 26. Nxd4 {[%clk 0:01:47]}  cxd4 {[%clk 0:01:35]} 27. Qf2 {[%clk 0:01:48]}  Rc3 {[%clk 0:01:34]} 28. b4 {[%clk 0:01:43]}  Rec8 {[%clk 0:01:27]} 29. Qf5 {[%clk 0:01:40]}  Rc2+ {[%clk 0:01:21]} 30. Kg1 {[%clk 0:01:40]}  Qe6 {[%clk 0:01:11]} 31. Ra1 {[%clk 0:00:57]}  g6 {[%clk 0:00:47]} 32. Qxe6 {[%clk 0:00:43]}  fxe6 {[%clk 0:00:47]} 33. Rf2 {[%clk 0:00:23]}  Rxf2 {[%clk 0:00:39]} 34. Kxf2 {[%clk 0:00:23]}  Rc2+ {[%clk 0:00:39]} 35. Kf3 {[%clk 0:00:24]}  Rd2 {[%clk 0:00:36]} 36. Ra5 {[%clk 0:00:21]}  Rxd3+ {[%clk 0:00:35]} 37. Kf4 {[%clk 0:00:21]}  Rd2 {[%clk 0:00:27]} 38. Rxb5 {[%clk 0:00:21]}  Rxh2 {[%clk 0:00:25]} 39. Rb7 {[%clk 0:00:19]}  Rh5 {[%clk 0:00:18]} 40. e5 {[%clk 0:00:17]}  Rh1 {[%clk 0:00:14]} 41. Rd7 {[%clk 0:00:16]}  Rd1 {[%clk 0:00:12]} 42. Kg5 {[%clk 0:00:16]}  Rd3 {[%clk 0:00:10]} 43. Kf6 {[%clk 0:00:16]}  Rf3+ {[%clk 0:00:07]} 44. Kxe6 {[%clk 0:00:16]}  Rxg3 {[%clk 0:00:06]} 45. Rxd4 {[%clk 0:00:16]}  Rb3 {[%clk 0:00:06]} 46. Rd8+ {[%clk 0:00:16]}  Kg7 {[%clk 0:00:06]} 47. Rb8 {[%clk 0:00:17]}  g5 {[%clk 0:00:06]} 48. Kf5 {[%clk 0:00:16]}  g4 {[%clk 0:00:05]} 49. Kxg4 {[%clk 0:00:15]}  Kf7 {[%clk 0:00:05]} 50. Kf5 {[%clk 0:00:16]}  Rf3+ {[%clk 0:00:05]} 51. Ke4 {[%clk 0:00:16]}  Rb3 {[%clk 0:00:06]} 52. Kd5 {[%clk 0:00:16]}  Rd3+ {[%clk 0:00:05]} 53. Kc4 {[%clk 0:00:17]}  Re3 {[%clk 0:00:05]} 54. Kd4 {[%clk 0:00:17]}  Rb3 {[%clk 0:00:05]} 55. b5 {[%clk 0:00:18]}  Ke6 {[%clk 0:00:05]} 56. Rb6+ {[%clk 0:00:19]}  Ke7 {[%clk 0:00:05]} 57. Kd5 {[%clk 0:00:18]}  Rd3+ {[%clk 0:00:05]} 58. Ke4 {[%clk 0:00:18]}  Rb3 {[%clk 0:00:05]} 59. Kf4 {[%clk 0:00:17]}  h5 {[%clk 0:00:04]} 60. Kg5 {[%clk 0:00:17]}  Re3 {[%clk 0:00:03]} 61. e6 {[%clk 0:00:17]}  Re5+ {[%clk 0:00:03]} 62. Kf4 {[%clk 0:00:15]}  Rc5 {[%clk 0:00:03]} 63. Ke4 {[%clk 0:00:14]}  h4 {[%clk 0:00:04]} 64. Kd4 {[%clk 0:00:14]}  Rc1 {[%clk 0:00:04]} 65. Kd5 {[%clk 0:00:10]}  Rd1+ {[%clk 0:00:03]} 66. Kc5 {[%clk 0:00:10]}  h3 {[%clk 0:00:03]} 67. Rb7+ {[%clk 0:00:11]}  Kxe6 {[%clk 0:00:03]} 68. Rh7 {[%clk 0:00:11]}  Rc1+ {[%clk 0:00:03]} 69. Kb6 {[%clk 0:00:12]}  Rc3 {[%clk 0:00:02]} 70. Kb7 {[%clk 0:00:12]}  Kf5 {[%clk 0:00:02]} 71. b6 {[%clk 0:00:12]}  Kg4 {[%clk 0:00:02]} 72. Ka8 {[%clk 0:00:12]}  Ra3+ {[%clk 0:00:02]} 73. Kb8 {[%clk 0:00:09]}  Rb3 {[%clk 0:00:03]} 74. Ka7 {[%clk 0:00:08]}  Rxb6 {[%clk 0:00:03]} 75. Kxb6 {[%clk 0:00:09]}  Kg3 {[%clk 0:00:04]} 76. Rg7+ {[%clk 0:00:09]}  Kf2 {[%clk 0:00:04]} 77. Rf7+ {[%clk 0:00:10]}  Kg2 {[%clk 0:00:05]} 78. Rg7+ {[%clk 0:00:10]}  Kf2 {[%clk 0:00:05]} 79. Kc5 {[%clk 0:00:11]}  h2 {[%clk 0:00:05]} 80. Rf7+ {[%clk 0:00:12]}  Kg2 {[%clk 0:00:06]} 81. Rg7+ {[%clk 0:00:13]}  Kf2 {[%clk 0:00:06]} 82. Rf7+ {[%clk 0:00:13]}  Kg2 {[%clk 0:00:07]} 83. Rg7+ {[%clk 0:00:13]}  Kf2 {[%clk 0:00:08]} 1/2-1/2


[Site "https://www.chess.com"]

[Event "Titled Tuesday Blitz February 28 Early 2023"]
[White "Zemlyanskii, Ivan"]
[Black "Buscar, Michael"]
[WhiteFideId "24249971"]
[BlackFideId "2603616"]
[WhiteElo "2233"]
[BlackElo "2010"]
[Result "1-0"]
[Round "10"]
[TimeControl "180+2"]
[Date "2023.02.28"]
[WhiteClock "0:01:12"]
[BlackClock "0:00:06"]

1. d4 {[%clk 0:03:00]}  d5 {[%clk 0:02:58]} 2. Bf4 {[%clk 0:02:58]}  e6 {[%clk 0:02:56]} 3. e3 {[%clk 0:02:58]}  g5 {[%clk 0:02:56]} 4. Bg3 {[%clk 0:02:55]}  h5 {[%clk 0:02:56]} 5. h4 {[%clk 0:02:51]}  g4 {[%clk 0:02:55]} 6. c4 {[%clk 0:02:51]}  Bd6 {[%clk 0:02:53]} 7. Ne2 {[%clk 0:02:50]}  c6 {[%clk 0:02:47]} 8. Nbc3 {[%clk 0:02:50]}  Ne7 {[%clk 0:02:44]} 9. Bxd6 {[%clk 0:02:43]}  Qxd6 {[%clk 0:02:43]} 10. Nf4 {[%clk 0:02:44]}  Nd7 {[%clk 0:02:35]} 11. cxd5 {[%clk 0:02:42]}  Nxd5 {[%clk 0:02:30]} 12. Ncxd5 {[%clk 0:02:35]}  exd5 {[%clk 0:02:27]} 13. Bd3 {[%clk 0:02:30]}  Nf6 {[%clk 0:02:26]} 14. Qd2 {[%clk 0:02:29]}  Bd7 {[%clk 0:02:22]} 15. O-O-O {[%clk 0:02:26]}  O-O-O {[%clk 0:02:22]} 16. Kb1 {[%clk 0:02:25]}  Kb8 {[%clk 0:02:21]} 17. Rc1 {[%clk 0:02:25]}  Rde8 {[%clk 0:02:18]} 18. Rc5 {[%clk 0:02:12]}  Ne4 {[%clk 0:02:14]} 19. Bxe4 {[%clk 0:02:11]}  Rxe4 {[%clk 0:02:13]} 20. g3 {[%clk 0:02:03]}  Bf5 {[%clk 0:02:12]} 21. Ka1 {[%clk 0:02:03]}  Re7 {[%clk 0:02:04]} 22. Rhc1 {[%clk 0:02:03]}  Bg6 {[%clk 0:02:04]} 23. Qb4 {[%clk 0:01:59]}  b6 {[%clk 0:01:24]} 24. Qb3 {[%clk 0:01:58]}  Rc8 {[%clk 0:01:20]} 25. Nxd5 {[%clk 0:01:53]}  Rb7 {[%clk 0:01:14]} 26. R5c3 {[%clk 0:01:50]}  Bf5 {[%clk 0:00:52]} 27. Nf4 {[%clk 0:01:45]}  Bg6 {[%clk 0:00:47]} 28. Qa4 {[%clk 0:01:40]}  Rbc7 {[%clk 0:00:42]} 29. a3 {[%clk 0:01:38]}  Kb7 {[%clk 0:00:37]} 30. Qb3 {[%clk 0:01:34]}  Qf6 {[%clk 0:00:30]} 31. d5 {[%clk 0:01:30]}  c5 {[%clk 0:00:28]} 32. a4 {[%clk 0:01:23]}  Rd7 {[%clk 0:00:25]} 33. a5 {[%clk 0:01:22]}  Rh8 {[%clk 0:00:18]} 34. Qb5 {[%clk 0:01:21]}  Rhd8 {[%clk 0:00:17]} 35. Rxc5 {[%clk 0:01:19]}  a6 {[%clk 0:00:08]} 36. Qxb6+ {[%clk 0:01:15]}  Qxb6 {[%clk 0:00:08]} 37. axb6 {[%clk 0:01:15]}  Kxb6 {[%clk 0:00:09]} 38. Rc6+ {[%clk 0:01:15]}  Kb5 {[%clk 0:00:09]} 39. R1c5+ {[%clk 0:01:11]}  Kb4 {[%clk 0:00:09]} 40. Ka2 {[%clk 0:01:12]}  Be4 {[%clk 0:00:06]} 41. Rc4+ {[%clk 0:01:11]}  Kb5 {[%clk 0:00:06]} 42. Rxe4 {[%clk 0:01:12]} 1-0


[Site "https://www.chess.com"]

[Event "Titled Tuesday Blitz February 28 Early 2023"]
[White "Sreyas Payyappat"]
[Black "Spata, German"]
[WhiteFideId "46674969"]
[BlackFideId "113026"]
[WhiteElo "2083"]
[BlackElo "2238"]
[Result "0-1"]
[Round "10"]
[TimeControl "180+2"]
[Date "2023.02.28"]
[WhiteClock "0:00:11"]
[BlackClock "0:00:18"]

1. e4 {[%clk 0:02:56]}  e5 {[%clk 0:02:59]} 2. Nf3 {[%clk 0:02:55]}  Nc6 {[%clk 0:02:58]} 3. Bc4 {[%clk 0:02:55]}  Nf6 {[%clk 0:02:58]} 4. d4 {[%clk 0:02:54]}  exd4 {[%clk 0:02:56]} 5. e5 {[%clk 0:02:55]}  d5 {[%clk 0:02:56]} 6. Bb5 {[%clk 0:02:55]}  Ne4 {[%clk 0:02:56]} 7. Nxd4 {[%clk 0:02:54]}  Bd7 {[%clk 0:02:56]} 8. Bxc6 {[%clk 0:02:52]}  bxc6 {[%clk 0:02:56]} 9. c3 {[%clk 0:02:53]}  Be7 {[%clk 0:02:55]} 10. O-O {[%clk 0:02:53]}  O-O {[%clk 0:02:55]} 11. Be3 {[%clk 0:02:52]}  Rb8 {[%clk 0:02:46]} 12. Qc2 {[%clk 0:02:44]}  c5 {[%clk 0:02:44]} 13. Nb3 {[%clk 0:02:41]}  c4 {[%clk 0:02:44]} 14. N3d2 {[%clk 0:02:32]}  Bf5 {[%clk 0:02:41]} 15. Nxe4 {[%clk 0:02:31]}  Bxe4 {[%clk 0:02:41]} 16. Qd2 {[%clk 0:02:29]}  c5 {[%clk 0:02:33]} 17. Na3 {[%clk 0:02:10]}  Bd3 {[%clk 0:02:29]} 18. Rfd1 {[%clk 0:02:07]}  d4 {[%clk 0:02:29]} 19. Bf4 {[%clk 0:02:04]}  Qa5 {[%clk 0:02:20]} 20. Rac1 {[%clk 0:01:57]}  Qa4 {[%clk 0:02:05]} 21. Bg3 {[%clk 0:01:17]}  Rb6 {[%clk 0:02:04]} 22. cxd4 {[%clk 0:01:11]}  cxd4 {[%clk 0:02:03]} 23. Nxc4 {[%clk 0:01:09]}  Bxc4 {[%clk 0:01:58]} 24. b3 {[%clk 0:01:09]}  Bxb3 {[%clk 0:01:52]} 25. axb3 {[%clk 0:01:10]}  Qxb3 {[%clk 0:01:38]} 26. Qxd4 {[%clk 0:01:09]}  h6 {[%clk 0:01:32]} 27. h3 {[%clk 0:01:06]}  Rd8 {[%clk 0:01:22]} 28. Qg4 {[%clk 0:00:58]}  Rxd1+ {[%clk 0:01:18]} 29. Rxd1 {[%clk 0:00:59]}  Qc2 {[%clk 0:01:10]} 30. Rd7 {[%clk 0:00:36]}  Bc5 {[%clk 0:00:48]} 31. Qf3 {[%clk 0:00:20]}  Qg6 {[%clk 0:00:37]} 32. Kh2 {[%clk 0:00:19]}  Re6 {[%clk 0:00:23]} 33. Rc7 {[%clk 0:00:17]}  Bb6 {[%clk 0:00:21]} 34. Rc8+ {[%clk 0:00:16]}  Kh7 {[%clk 0:00:21]} 35. Rf8 {[%clk 0:00:15]}  f6 {[%clk 0:00:18]} 36. Qa8 {[%clk 0:00:15]}  Qf5 {[%clk 0:00:17]} 37. exf6 {[%clk 0:00:14]}  Rxf6 {[%clk 0:00:17]} 38. Rh8+ {[%clk 0:00:14]}  Kg6 {[%clk 0:00:17]} 39. Qe8+ {[%clk 0:00:14]}  Rf7 {[%clk 0:00:18]} 40. Rf8 {[%clk 0:00:13]}  Qf6 {[%clk 0:00:18]} 41. Rxf7 {[%clk 0:00:13]}  Qxf7 {[%clk 0:00:18]} 42. Qe4+ {[%clk 0:00:14]}  Qf5 {[%clk 0:00:18]} 43. Qc6+ {[%clk 0:00:14]}  Qf6 {[%clk 0:00:19]} 44. Qa4 {[%clk 0:00:13]}  Kh7 {[%clk 0:00:19]} 45. h4 {[%clk 0:00:12]}  Qg6 {[%clk 0:00:20]} 46. Kh3 {[%clk 0:00:11]}  Qf5+ {[%clk 0:00:19]} 47. Qg4 {[%clk 0:00:11]}  Qxg4+ {[%clk 0:00:19]} 48. Kxg4 {[%clk 0:00:12]}  a5 {[%clk 0:00:19]} 49. f3 {[%clk 0:00:13]}  a4 {[%clk 0:00:19]} 50. Be5 {[%clk 0:00:13]}  Kg6 {[%clk 0:00:19]} 51. Bd6 {[%clk 0:00:12]}  Bd4 {[%clk 0:00:18]} 52. Kf4 {[%clk 0:00:11]}  Bb2 {[%clk 0:00:18]} 53. g4 {[%clk 0:00:10]}  a3 {[%clk 0:00:18]} 54. h5+ {[%clk 0:00:11]}  Kf7 {[%clk 0:00:18]} 55. Kf5 {[%clk 0:00:11]}  a2 {[%clk 0:00:18]} 0-1


[Site "https://www.chess.com"]

[Event "Titled Tuesday Blitz February 28 Early 2023"]
[White "Shuvalova, Polina"]
[Black "Sanchez, Robert"]
[WhiteFideId "24171760"]
[BlackFideId "2034360"]
[WhiteElo "2330"]
[BlackElo "2432"]
[Result "1-0"]
[Round "10"]
[TimeControl "180+2"]
[Date "2023.02.28"]
[WhiteClock "0:00:26"]
[BlackClock "0:00:01"]

1. e4 {[%clk 0:03:00]}  e6 {[%clk 0:03:00]} 2. d4 {[%clk 0:03:00]}  d5 {[%clk 0:03:00]} 3. Nd2 {[%clk 0:03:01]}  Nf6 {[%clk 0:03:00]} 4. Bd3 {[%clk 0:02:46]}  c5 {[%clk 0:02:56]} 5. Ngf3 {[%clk 0:02:37]}  cxd4 {[%clk 0:02:52]} 6. O-O {[%clk 0:02:27]}  Nc6 {[%clk 0:02:47]} 7. e5 {[%clk 0:02:21]}  Nd7 {[%clk 0:02:44]} 8. Re1 {[%clk 0:02:21]}  Be7 {[%clk 0:02:43]} 9. Nb3 {[%clk 0:02:20]}  Nc5 {[%clk 0:02:36]} 10. Nbxd4 {[%clk 0:02:19]}  Nxd3 {[%clk 0:02:35]} 11. cxd3 {[%clk 0:02:19]}  O-O {[%clk 0:02:32]} 12. Be3 {[%clk 0:02:15]}  Bd7 {[%clk 0:02:32]} 13. Nxc6 {[%clk 0:02:13]}  Bxc6 {[%clk 0:02:22]} 14. Nd4 {[%clk 0:02:11]}  Bd7 {[%clk 0:02:22]} 15. Qb3 {[%clk 0:02:09]}  b5 {[%clk 0:02:16]} 16. Rac1 {[%clk 0:02:02]}  a5 {[%clk 0:02:01]} 17. Nc6 {[%clk 0:01:56]}  Bxc6 {[%clk 0:01:49]} 18. Rxc6 {[%clk 0:01:57]}  d4 {[%clk 0:01:36]} 19. Bd2 {[%clk 0:01:51]}  b4 {[%clk 0:01:35]} 20. Qc4 {[%clk 0:01:48]}  Rc8 {[%clk 0:01:15]} 21. Rc1 {[%clk 0:01:47]}  Rxc6 {[%clk 0:01:14]} 22. Qxc6 {[%clk 0:01:47]}  h6 {[%clk 0:01:01]} 23. b3 {[%clk 0:01:44]}  Qb8 {[%clk 0:00:54]} 24. Bf4 {[%clk 0:01:43]}  Bg5 {[%clk 0:00:52]} 25. Bxg5 {[%clk 0:01:40]}  hxg5 {[%clk 0:00:52]} 26. Qc5 {[%clk 0:01:40]}  Rd8 {[%clk 0:00:48]} 27. Qxa5 {[%clk 0:01:38]}  Rd5 {[%clk 0:00:46]} 28. Qa6 {[%clk 0:01:18]}  Qxe5 {[%clk 0:00:42]} 29. Qc8+ {[%clk 0:00:56]}  Kh7 {[%clk 0:00:40]} 30. Qb7 {[%clk 0:00:57]}  Qe2 {[%clk 0:00:33]} 31. Rf1 {[%clk 0:00:51]}  Rf5 {[%clk 0:00:22]} 32. Qxb4 {[%clk 0:00:43]}  Qxd3 {[%clk 0:00:22]} 33. a4 {[%clk 0:00:37]}  Re5 {[%clk 0:00:05]} 34. g3 {[%clk 0:00:32]}  Re2 {[%clk 0:00:03]} 35. Qe7 {[%clk 0:00:27]}  Qxb3 {[%clk 0:00:01]} 36. Qxf7 {[%clk 0:00:26]} 1-0


[Site "https://www.chess.com"]

[Event "Titled Tuesday Blitz February 28 Early 2023"]
[White "Mayank Chakraborty"]
[Black "Zhukova, Natalia"]
[WhiteFideId "25659766"]
[BlackFideId "14101513"]
[WhiteElo "2103"]
[BlackElo "2297"]
[Result "1-0"]
[Round "10"]
[TimeControl "180+2"]
[Date "2023.02.28"]
[WhiteClock "0:00:16"]
[BlackClock "0:00:07"]

1. b3 {[%clk 0:03:00]}  e5 {[%clk 0:02:53]} 2. Bb2 {[%clk 0:03:01]}  Nc6 {[%clk 0:02:52]} 3. c4 {[%clk 0:02:57]}  g6 {[%clk 0:02:51]} 4. g3 {[%clk 0:02:56]}  Bg7 {[%clk 0:02:51]} 5. Bg2 {[%clk 0:02:57]}  Nge7 {[%clk 0:02:52]} 6. Nc3 {[%clk 0:02:56]}  O-O {[%clk 0:02:50]} 7. e3 {[%clk 0:02:55]}  d5 {[%clk 0:02:49]} 8. cxd5 {[%clk 0:02:54]}  Nb4 {[%clk 0:02:49]} 9. Qb1 {[%clk 0:02:44]}  Nexd5 {[%clk 0:02:40]} 10. Nxd5 {[%clk 0:02:44]}  Nxd5 {[%clk 0:02:40]} 11. a3 {[%clk 0:02:44]}  Be6 {[%clk 0:02:34]} 12. Nf3 {[%clk 0:02:40]}  Qd6 {[%clk 0:02:26]} 13. Ng5 {[%clk 0:02:38]}  Bd7 {[%clk 0:02:19]} 14. h4 {[%clk 0:02:37]}  h6 {[%clk 0:02:05]} 15. Ne4 {[%clk 0:02:36]}  Qb6 {[%clk 0:02:06]} 16. b4 {[%clk 0:02:36]}  a5 {[%clk 0:01:56]} 17. h5 {[%clk 0:02:31]}  g5 {[%clk 0:01:50]} 18. Nc5 {[%clk 0:02:29]}  Bc6 {[%clk 0:01:44]} 19. O-O {[%clk 0:01:55]}  axb4 {[%clk 0:01:41]} 20. Nd3 {[%clk 0:01:51]}  f6 {[%clk 0:00:58]} 21. Bxd5+ {[%clk 0:01:34]}  Bxd5 {[%clk 0:00:57]} 22. Nxb4 {[%clk 0:01:35]}  Bf3 {[%clk 0:00:54]} 23. Qg6 {[%clk 0:01:33]}  c5 {[%clk 0:00:49]} 24. Nd3 {[%clk 0:01:00]}  e4 {[%clk 0:00:49]} 25. Ne5 {[%clk 0:00:37]}  Qxb2 {[%clk 0:00:42]} 26. Nxf3 {[%clk 0:00:37]}  exf3 {[%clk 0:00:41]} 27. Rab1 {[%clk 0:00:37]}  Qa2 {[%clk 0:00:36]} 28. Rxb7 {[%clk 0:00:32]}  Rf7 {[%clk 0:00:36]} 29. Rb6 {[%clk 0:00:20]}  Qc4 {[%clk 0:00:29]} 30. Rfb1 {[%clk 0:00:18]}  Qg4 {[%clk 0:00:18]} 31. Rb8+ {[%clk 0:00:17]}  Rxb8 {[%clk 0:00:06]} 32. Rxb8+ {[%clk 0:00:16]}  Rf8 {[%clk 0:00:07]} 33. Rb7 {[%clk 0:00:16]} 1-0


[Site "https://www.chess.com"]